[Event "January 2 Early 2024"]
[Site "https://www.chess.com"]
[Date "2024.01.02"]
[Round "10"]
[White "ilqar_74"]
[Black "Ovezdurdyyeva, Jemal"]
[Result "1-0"]
[Board "39"]
[TimeControl "180+1"]
[BlackFideId "14001888"]
[WhiteElo "2783"]
[BlackElo "2459"]
[BlackTeam "TKM"]
[WhiteClock "0:00:24"]
[BlackClock "0:00:00"]

1. e4 {[%clk 0:03:00]}  d6 {[%clk 0:02:57]} 2. d4 {[%clk 0:03:00]}  Nf6 {[%clk 0:02:57]} 3. Nc3 {[%clk 0:03:00]}  g6 {[%clk 0:02:58]} 4. f4 {[%clk 0:03:01]}  c6 {[%clk 0:02:58]} 5. e5 {[%clk 0:03:01]}  dxe5 {[%clk 0:02:58]} 6. fxe5 {[%clk 0:03:02]}  Nd5 {[%clk 0:02:58]} 7. Nf3 {[%clk 0:03:03]}  Bg7 {[%clk 0:02:58]} 8. Nxd5 {[%clk 0:03:02]}  cxd5 {[%clk 0:02:56]} 9. Bd3 {[%clk 0:03:03]}  O-O {[%clk 0:02:56]} 10. O-O {[%clk 0:03:02]}  Nc6 {[%clk 0:02:55]} 11. c3 {[%clk 0:03:03]}  f6 {[%clk 0:02:55]} 12. exf6 {[%clk 0:03:03]}  exf6 {[%clk 0:02:55]} 13. Bf4 {[%clk 0:03:03]}  Be6 {[%clk 0:02:53]} 14. Qb3 {[%clk 0:03:03]}  Qd7 {[%clk 0:02:50]} 15. Rfe1 {[%clk 0:03:02]}  Bf7 {[%clk 0:02:47]} 16. h3 {[%clk 0:03:02]}  Rfe8 {[%clk 0:02:45]} 17. a4 {[%clk 0:03:00]}  Na5 {[%clk 0:02:28]} 18. Qc2 {[%clk 0:02:58]}  Rxe1+ {[%clk 0:02:24]} 19. Rxe1 {[%clk 0:02:59]}  Re8 {[%clk 0:02:24]} 20. Rxe8+ {[%clk 0:02:59]}  Qxe8 {[%clk 0:02:24]} 21. b3 {[%clk 0:02:58]}  a6 {[%clk 0:02:13]} 22. Kh2 {[%clk 0:02:57]}  Qc6 {[%clk 0:02:13]} 23. b4 {[%clk 0:02:55]}  Nc4 {[%clk 0:02:11]} 24. a5 {[%clk 0:02:54]}  Bf8 {[%clk 0:02:08]} 25. Kg1 {[%clk 0:02:50]}  Nd6 {[%clk 0:01:51]} 26. Bd2 {[%clk 0:02:39]}  Ne4 {[%clk 0:01:50]} 27. Be1 {[%clk 0:02:38]}  Bd6 {[%clk 0:01:46]} 28. c4 {[%clk 0:02:36]}  f5 {[%clk 0:01:42]} 29. c5 {[%clk 0:02:34]}  Bf4 {[%clk 0:01:40]} 30. Bf2 {[%clk 0:02:27]}  Qc7 {[%clk 0:01:35]} 31. Qe2 {[%clk 0:02:16]}  Be8 {[%clk 0:01:25]} 32. Be3 {[%clk 0:02:11]}  Bg3 {[%clk 0:01:22]} 33. Qa2 {[%clk 0:01:58]}  Bf7 {[%clk 0:01:19]} 34. Qc2 {[%clk 0:01:34]}  Qe7 {[%clk 0:01:17]} 35. Qc1 {[%clk 0:01:30]}  Qe8 {[%clk 0:01:15]} 36. Bxe4 {[%clk 0:01:27]}  dxe4 {[%clk 0:01:10]} 37. Ng5 {[%clk 0:01:23]}  Bd5 {[%clk 0:01:00]} 38. h4 {[%clk 0:01:19]}  Qb5 {[%clk 0:00:55]} 39. Qd2 {[%clk 0:01:14]}  Qa4 {[%clk 0:00:42]} 40. Nh3 {[%clk 0:01:04]}  Qa1+ {[%clk 0:00:35]} 41. Qc1 {[%clk 0:01:04]}  Qa2 {[%clk 0:00:36]} 42. Bf2 {[%clk 0:00:53]}  Bc7 {[%clk 0:00:19]} 43. Be3 {[%clk 0:00:48]}  Qb3 {[%clk 0:00:18]} 44. Bf4 {[%clk 0:00:44]}  Bd8 {[%clk 0:00:17]} 45. Bg5 {[%clk 0:00:43]}  Bc7 {[%clk 0:00:17]} 46. Bf4 {[%clk 0:00:43]}  Bd8 {[%clk 0:00:16]} 47. h5 {[%clk 0:00:35]}  Qxb4 {[%clk 0:00:15]} 48. Be5 {[%clk 0:00:33]}  Qb5 {[%clk 0:00:02]} 49. hxg6 {[%clk 0:00:29]}  Qd7 {[%clk 0:00:01]} 50. Qh6 {[%clk 0:00:28]}  hxg6 {[%clk 0:00:01]} 51. Qxg6+ {[%clk 0:00:26]}  Kf8 {[%clk 0:00:00]} 52. Nf4 {[%clk 0:00:24]} 1-0

[Event "January 2 Early 2024"]
[Site "https://www.chess.com"]
[Date "2024.01.02"]
[Round "10"]
[White "Klukin, Kirill"]
[Black "Manukyan, Sargis A."]
[Result "1-0"]
[Board "41"]
[TimeControl "180+1"]
[WhiteFideId "24199273"]
[BlackFideId "13303970"]
[WhiteElo "2821"]
[BlackElo "2642"]
[WhiteTeam "RUS"]
[BlackTeam "ARM"]
[WhiteClock "0:01:48"]
[BlackClock "0:01:09"]

1. d4 {[%clk 0:02:56]}  d5 {[%clk 0:02:59]} 2. c4 {[%clk 0:02:56]}  e6 {[%clk 0:02:59]} 3. Nc3 {[%clk 0:02:56]}  Nf6 {[%clk 0:02:59]} 4. Nf3 {[%clk 0:02:56]}  Be7 {[%clk 0:02:59]} 5. cxd5 {[%clk 0:02:55]}  exd5 {[%clk 0:02:56]} 6. Bg5 {[%clk 0:02:54]}  O-O {[%clk 0:02:57]} 7. e3 {[%clk 0:02:54]}  h6 {[%clk 0:02:54]} 8. Bf4 {[%clk 0:02:54]}  b6 {[%clk 0:02:51]} 9. Qc2 {[%clk 0:02:53]}  Bb7 {[%clk 0:02:50]} 10. Bd3 {[%clk 0:02:53]}  c5 {[%clk 0:02:50]} 11. h3 {[%clk 0:02:52]}  c4 {[%clk 0:02:49]} 12. Bf5 {[%clk 0:02:52]}  a6 {[%clk 0:02:46]} 13. g4 {[%clk 0:02:45]}  g6 {[%clk 0:02:37]} 14. Bxg6 {[%clk 0:02:42]}  fxg6 {[%clk 0:02:38]} 15. Qxg6+ {[%clk 0:02:41]}  Kh8 {[%clk 0:02:38]} 16. Ne5 {[%clk 0:02:15]}  Qe8 {[%clk 0:02:37]} 17. Bxh6 {[%clk 0:01:54]}  Qxg6 {[%clk 0:01:26]} 18. Nxg6+ {[%clk 0:01:53]}  Kh7 {[%clk 0:01:27]} 19. Bxf8 {[%clk 0:01:53]}  Kxg6 {[%clk 0:01:26]} 20. Bxe7 {[%clk 0:01:53]}  Nbd7 {[%clk 0:01:21]} 21. Bxf6 {[%clk 0:01:50]}  Nxf6 {[%clk 0:01:20]} 22. f3 {[%clk 0:01:51]}  b5 {[%clk 0:01:20]} 23. a3 {[%clk 0:01:51]}  Bc6 {[%clk 0:01:20]} 24. Kf2 {[%clk 0:01:51]}  a5 {[%clk 0:01:21]} 25. h4 {[%clk 0:01:50]}  Rf8 {[%clk 0:01:21]} 26. Kg3 {[%clk 0:01:49]}  b4 {[%clk 0:01:19]} 27. axb4 {[%clk 0:01:49]}  axb4 {[%clk 0:01:19]} 28. Ne2 {[%clk 0:01:50]}  Bb5 {[%clk 0:01:15]} 29. Nf4+ {[%clk 0:01:50]}  Kg7 {[%clk 0:01:13]} 30. Ne6+ {[%clk 0:01:49]}  Kg8 {[%clk 0:01:12]} 31. Nxf8 {[%clk 0:01:50]}  Kxf8 {[%clk 0:01:09]} 32. Ra5 {[%clk 0:01:48]} 1-0

[Event "January 2 Early 2024"]
[Site "https://www.chess.com"]
[Date "2024.01.02"]
[Round "10"]
[White "Holt, Conrad"]
[Black "Zavgorodniy, Sergiy"]
[Result "1-0"]
[Board "43"]
[TimeControl "180+1"]
[WhiteFideId "2034387"]
[BlackFideId "14110148"]
[WhiteElo "2795"]
[BlackElo "2636"]
[WhiteTeam "USA"]
[BlackTeam "UKR"]
[WhiteClock "0:00:06"]
[BlackClock "0:00:06"]

1. d4 {[%clk 0:03:00]}  Nf6 {[%clk 0:02:59]} 2. c4 {[%clk 0:03:01]}  e6 {[%clk 0:02:59]} 3. Nf3 {[%clk 0:03:00]}  Bb4+ {[%clk 0:02:58]} 4. Nbd2 {[%clk 0:03:00]}  b6 {[%clk 0:02:58]} 5. a3 {[%clk 0:02:58]}  Bxd2+ {[%clk 0:02:58]} 6. Qxd2 {[%clk 0:02:58]}  Bb7 {[%clk 0:02:58]} 7. e3 {[%clk 0:02:59]}  d6 {[%clk 0:02:57]} 8. Be2 {[%clk 0:02:58]}  Nbd7 {[%clk 0:02:56]} 9. b4 {[%clk 0:02:58]}  a5 {[%clk 0:02:54]} 10. Bb2 {[%clk 0:02:57]}  axb4 {[%clk 0:02:53]} 11. axb4 {[%clk 0:02:58]}  Rxa1+ {[%clk 0:02:53]} 12. Bxa1 {[%clk 0:02:58]}  O-O {[%clk 0:02:51]} 13. O-O {[%clk 0:02:57]}  Qe7 {[%clk 0:02:51]} 14. Bb2 {[%clk 0:02:45]}  Ra8 {[%clk 0:02:51]} 15. Ra1 {[%clk 0:02:45]}  Qe8 {[%clk 0:02:47]} 16. Qd1 {[%clk 0:02:43]}  h6 {[%clk 0:02:45]} 17. Nd2 {[%clk 0:02:41]}  Qb8 {[%clk 0:02:35]} 18. f3 {[%clk 0:02:33]}  c5 {[%clk 0:02:17]} 19. dxc5 {[%clk 0:02:26]}  dxc5 {[%clk 0:02:15]} 20. b5 {[%clk 0:02:25]}  Rxa1 {[%clk 0:01:52]} 21. Qxa1 {[%clk 0:02:24]}  Ne8 {[%clk 0:01:50]} 22. Bc3 {[%clk 0:02:13]}  e5 {[%clk 0:01:45]} 23. Bd3 {[%clk 0:02:10]}  g6 {[%clk 0:01:35]} 24. Bc2 {[%clk 0:02:03]}  h5 {[%clk 0:01:12]} 25. Qe1 {[%clk 0:01:56]}  Qd6 {[%clk 0:01:06]} 26. Qh4 {[%clk 0:01:53]}  Nef6 {[%clk 0:00:52]} 27. Qg5 {[%clk 0:01:48]}  Qe6 {[%clk 0:00:52]} 28. h3 {[%clk 0:01:43]}  Kg7 {[%clk 0:00:51]} 29. f4 {[%clk 0:01:29]}  exf4 {[%clk 0:00:45]} 30. Qxf4 {[%clk 0:01:22]}  Kh7 {[%clk 0:00:37]} 31. e4 {[%clk 0:01:18]}  Ne8 {[%clk 0:00:32]} 32. e5 {[%clk 0:00:50]}  Ng7 {[%clk 0:00:30]} 33. Ne4 {[%clk 0:00:35]}  Bxe4 {[%clk 0:00:30]} 34. Bxe4 {[%clk 0:00:34]}  Qe7 {[%clk 0:00:25]} 35. Bd5 {[%clk 0:00:27]}  Ne6 {[%clk 0:00:24]} 36. Qf2 {[%clk 0:00:25]}  Kg8 {[%clk 0:00:23]} 37. Qe3 {[%clk 0:00:11]}  Qh4 {[%clk 0:00:22]} 38. Kh1 {[%clk 0:00:07]}  Ndf8 {[%clk 0:00:18]} 39. Be1 {[%clk 0:00:06]}  Qe7 {[%clk 0:00:16]} 40. Bf2 {[%clk 0:00:06]}  Nd7 {[%clk 0:00:15]} 41. Bg3 {[%clk 0:00:06]}  Ndf8 {[%clk 0:00:15]} 42. Kh2 {[%clk 0:00:06]}  Nd7 {[%clk 0:00:15]} 43. Be1 {[%clk 0:00:06]}  Ndf8 {[%clk 0:00:16]} 44. Bc3 {[%clk 0:00:06]}  Nd7 {[%clk 0:00:16]} 45. Qe4 {[%clk 0:00:07]}  Ndf8 {[%clk 0:00:16]} 46. Kg1 {[%clk 0:00:07]}  Nd7 {[%clk 0:00:16]} 47. Bb2 {[%clk 0:00:07]}  Qg5 {[%clk 0:00:16]} 48. Bc3 {[%clk 0:00:06]}  Qc1+ {[%clk 0:00:15]} 49. Qe1 {[%clk 0:00:07]}  Qf4 {[%clk 0:00:14]} 50. Kh1 {[%clk 0:00:07]}  Ndf8 {[%clk 0:00:12]} 51. Bd2 {[%clk 0:00:06]}  Qd4 {[%clk 0:00:12]} 52. Qe3 {[%clk 0:00:07]}  Qh4 {[%clk 0:00:11]} 53. Qf3 {[%clk 0:00:06]}  Qe7 {[%clk 0:00:11]} 54. Bc3 {[%clk 0:00:07]}  Nd7 {[%clk 0:00:11]} 55. Kh2 {[%clk 0:00:06]}  Ndf8 {[%clk 0:00:11]} 56. Qf6 {[%clk 0:00:06]}  Qe8 {[%clk 0:00:10]} 57. Kg1 {[%clk 0:00:06]}  Nd7 {[%clk 0:00:11]} 58. Qf3 {[%clk 0:00:06]}  Qe7 {[%clk 0:00:11]} 59. Bc6 {[%clk 0:00:07]}  Qg5 {[%clk 0:00:10]} 60. Bxd7 {[%clk 0:00:07]}  Nf4 {[%clk 0:00:06]} 61. Bc6 {[%clk 0:00:06]} 1-0

[Event "January 2 Early 2024"]
[Site "https://www.chess.com"]
[Date "2024.01.02"]
[Round "10"]
[White "Novozhilov, Semen"]
[Black "Mirzoev, Azer"]
[Result "0-1"]
[Board "45"]
[TimeControl "180+1"]
[WhiteFideId "24289167"]
[BlackFideId "13400304"]
[WhiteElo "2761"]
[BlackElo "2623"]
[WhiteTeam "RUS"]
[BlackTeam "AZE"]
[WhiteClock "0:01:49"]
[BlackClock "0:01:35"]

1. d4 {[%clk 0:03:00]}  d5 {[%clk 0:02:59]} 2. c4 {[%clk 0:03:00]}  c6 {[%clk 0:02:59]} 3. cxd5 {[%clk 0:03:00]}  cxd5 {[%clk 0:03:00]} 4. Bg5 {[%clk 0:03:00]}  Nf6 {[%clk 0:02:59]} 5. Bxf6 {[%clk 0:03:00]}  gxf6 {[%clk 0:02:59]} 6. Nc3 {[%clk 0:03:01]}  e6 {[%clk 0:02:59]} 7. e3 {[%clk 0:03:01]}  Nc6 {[%clk 0:03:00]} 8. Bd3 {[%clk 0:03:01]}  f5 {[%clk 0:03:00]} 9. f4 {[%clk 0:03:00]}  Bb4 {[%clk 0:02:55]} 10. Nf3 {[%clk 0:03:00]}  Bd7 {[%clk 0:02:55]} 11. O-O {[%clk 0:03:00]}  Rc8 {[%clk 0:02:54]} 12. Rc1 {[%clk 0:02:58]}  O-O {[%clk 0:02:47]} 13. Ne5 {[%clk 0:02:57]}  Nxe5 {[%clk 0:02:47]} 14. fxe5 {[%clk 0:02:58]}  Qg5 {[%clk 0:02:45]} 15. Rf3 {[%clk 0:02:57]}  Kh8 {[%clk 0:02:44]} 16. Ne2 {[%clk 0:02:56]}  Rxc1 {[%clk 0:02:44]} 17. Qxc1 {[%clk 0:02:57]}  Rc8 {[%clk 0:02:41]} 18. Qd1 {[%clk 0:02:55]}  Rg8 {[%clk 0:02:32]} 19. Nf4 {[%clk 0:02:51]}  Be7 {[%clk 0:02:27]} 20. Rg3 {[%clk 0:02:50]}  Qh6 {[%clk 0:02:26]} 21. Rxg8+ {[%clk 0:02:47]}  Kxg8 {[%clk 0:02:25]} 22. Qc2 {[%clk 0:02:47]}  Bc6 {[%clk 0:02:23]} 23. a3 {[%clk 0:02:35]}  Bg5 {[%clk 0:02:21]} 24. g3 {[%clk 0:02:35]}  Qf8 {[%clk 0:02:19]} 25. b4 {[%clk 0:02:32]}  Be7 {[%clk 0:02:18]} 26. b5 {[%clk 0:02:29]}  Bd7 {[%clk 0:02:18]} 27. Qc7 {[%clk 0:02:29]}  Qc8 {[%clk 0:02:17]} 28. Qa5 {[%clk 0:02:27]}  Qb8 {[%clk 0:02:02]} 29. a4 {[%clk 0:02:26]}  b6 {[%clk 0:02:00]} 30. Qd2 {[%clk 0:02:24]}  Qf8 {[%clk 0:01:57]} 31. h4 {[%clk 0:02:22]}  h6 {[%clk 0:01:56]} 32. Kh2 {[%clk 0:02:17]}  Qc8 {[%clk 0:01:55]} 33. g4 {[%clk 0:02:14]}  fxg4 {[%clk 0:01:53]} 34. Qg2 {[%clk 0:02:13]}  Qf8 {[%clk 0:01:52]} 35. Qxg4+ {[%clk 0:02:06]}  Qg7 {[%clk 0:01:52]} 36. Qh3 {[%clk 0:02:07]}  Be8 {[%clk 0:01:46]} 37. Nh5 {[%clk 0:02:05]}  Qf8 {[%clk 0:01:45]} 38. Qg4+ {[%clk 0:02:02]}  Kh8 {[%clk 0:01:45]} 39. Qf4 {[%clk 0:02:02]}  f5 {[%clk 0:01:38]} 40. exf6 {[%clk 0:01:49]}  Bd6 {[%clk 0:01:35]} 0-1

[Event "January 2 Early 2024"]
[Site "https://www.chess.com"]
[Date "2024.01.02"]
[Round "10"]
[White "Garcia Ramos, Daniel"]
[Black "Teterev, Vitaly"]
[Result "0-1"]
[Board "46"]
[TimeControl "180+1"]
[WhiteFideId "32010311"]
[BlackFideId "13501429"]
[WhiteElo "2758"]
[BlackElo "2620"]
[WhiteTeam "ESP"]
[BlackTeam "BLR"]
[WhiteClock "0:01:26"]
[BlackClock "0:00:33"]

1. e4 {[%clk 0:03:00]}  c5 {[%clk 0:02:58]} 2. Nf3 {[%clk 0:03:01]}  d6 {[%clk 0:02:58]} 3. d4 {[%clk 0:03:01]}  cxd4 {[%clk 0:02:59]} 4. Nxd4 {[%clk 0:03:02]}  Nf6 {[%clk 0:03:00]} 5. f3 {[%clk 0:03:02]}  e6 {[%clk 0:02:53]} 6. c4 {[%clk 0:03:01]}  Nc6 {[%clk 0:02:52]} 7. Nc3 {[%clk 0:03:00]}  Be7 {[%clk 0:02:47]} 8. Nxc6 {[%clk 0:02:57]}  bxc6 {[%clk 0:02:47]} 9. Bd3 {[%clk 0:02:58]}  d5 {[%clk 0:02:43]} 10. cxd5 {[%clk 0:02:56]}  cxd5 {[%clk 0:02:42]} 11. e5 {[%clk 0:02:54]}  Nd7 {[%clk 0:02:42]} 12. f4 {[%clk 0:02:54]}  Nc5 {[%clk 0:02:41]} 13. O-O {[%clk 0:02:51]}  Nxd3 {[%clk 0:02:40]} 14. Qxd3 {[%clk 0:02:51]}  O-O {[%clk 0:02:35]} 15. Rd1 {[%clk 0:02:50]}  Rb8 {[%clk 0:02:26]} 16. b3 {[%clk 0:02:48]}  Qa5 {[%clk 0:02:22]} 17. Be3 {[%clk 0:02:43]}  Ba6 {[%clk 0:02:21]} 18. Qd2 {[%clk 0:02:43]}  Bb4 {[%clk 0:02:16]} 19. Bd4 {[%clk 0:02:41]}  Rfc8 {[%clk 0:02:16]} 20. Rac1 {[%clk 0:02:41]}  Rc7 {[%clk 0:02:15]} 21. Qe3 {[%clk 0:02:34]}  Rbc8 {[%clk 0:02:13]} 22. Na4 {[%clk 0:02:22]}  Bd2 {[%clk 0:01:51]} 23. Rxd2 {[%clk 0:02:12]}  Rxc1+ {[%clk 0:01:51]} 24. Kf2 {[%clk 0:02:13]}  R1c2 {[%clk 0:01:32]} 25. Rxc2 {[%clk 0:02:12]}  Rxc2+ {[%clk 0:01:31]} 26. Kg3 {[%clk 0:02:13]}  Bf1 {[%clk 0:01:13]} 27. Bxa7 {[%clk 0:02:11]}  Rxg2+ {[%clk 0:01:12]} 28. Kf3 {[%clk 0:02:11]}  Rxa2 {[%clk 0:01:07]} 29. Qc1 {[%clk 0:02:08]}  Qa6 {[%clk 0:00:57]} 30. Kg3 {[%clk 0:01:46]}  Rg2+ {[%clk 0:00:50]} 31. Kh4 {[%clk 0:01:46]}  g5+ {[%clk 0:00:41]} 32. fxg5 {[%clk 0:01:40]}  Qxa7 {[%clk 0:00:40]} 33. Qc8+ {[%clk 0:01:36]}  Kg7 {[%clk 0:00:39]} 34. Nc5 {[%clk 0:01:26]}  Qe7 {[%clk 0:00:33]} 0-1

[Event "January 2 Early 2024"]
[Site "https://www.chess.com"]
[Date "2024.01.02"]
[Round "10"]
[White "Ambartsumova, Karina"]
[Black "Kosteniuk, Alexandra"]
[Result "0-1"]
[Board "47"]
[TimeControl "180+1"]
[WhiteFideId "4166299"]
[BlackFideId "4128125"]
[WhiteElo "2606"]
[BlackElo "2754"]
[WhiteTeam "RUS"]
[BlackTeam "SUI"]
[WhiteClock "0:00:42"]
[BlackClock "0:01:30"]

1. d4 {[%clk 0:03:00]}  f5 {[%clk 0:03:00]} 2. Bf4 {[%clk 0:02:58]}  Nf6 {[%clk 0:02:59]} 3. Nc3 {[%clk 0:02:59]}  d5 {[%clk 0:02:58]} 4. Nf3 {[%clk 0:02:56]}  c6 {[%clk 0:02:56]} 5. g3 {[%clk 0:02:50]}  g6 {[%clk 0:02:54]} 6. Bg2 {[%clk 0:02:50]}  Bg7 {[%clk 0:02:55]} 7. O-O {[%clk 0:02:47]}  O-O {[%clk 0:02:54]} 8. Nb1 {[%clk 0:02:33]}  h6 {[%clk 0:02:50]} 9. Be5 {[%clk 0:02:26]}  Nbd7 {[%clk 0:02:48]} 10. Nbd2 {[%clk 0:02:26]}  g5 {[%clk 0:02:41]} 11. c4 {[%clk 0:02:12]}  Nxe5 {[%clk 0:02:18]} 12. Nxe5 {[%clk 0:02:11]}  Ne4 {[%clk 0:02:09]} 13. cxd5 {[%clk 0:01:50]}  cxd5 {[%clk 0:02:08]} 14. Nxe4 {[%clk 0:01:46]}  dxe4 {[%clk 0:01:58]} 15. Qb3+ {[%clk 0:01:45]}  Kh7 {[%clk 0:01:58]} 16. Rfd1 {[%clk 0:01:31]}  Qd6 {[%clk 0:01:52]} 17. Nc4 {[%clk 0:00:58]}  Qa6 {[%clk 0:01:41]} 18. f3 {[%clk 0:00:54]}  Be6 {[%clk 0:01:30]} 19. d5 {[%clk 0:00:53]}  Bd7 {[%clk 0:01:30]} 20. fxe4 {[%clk 0:00:52]}  Ba4 {[%clk 0:01:30]} 21. Qc2 {[%clk 0:00:42]}  Bxc2 {[%clk 0:01:30]} 0-1

[Event "January 2 Early 2024"]
[Site "https://www.chess.com"]
[Date "2024.01.02"]
[Round "10"]
[White "Dyachuk, Artem"]
[Black "Vallejo Diaz, Javier"]
[Result "1-0"]
[Board "49"]
[TimeControl "180+1"]
[WhiteFideId "34107924"]
[BlackFideId "2256398"]
[WhiteElo "2715"]
[BlackElo "2581"]
[WhiteTeam "UKR"]
[BlackTeam "ESP"]
[WhiteClock "0:00:55"]
[BlackClock "0:00:15"]

1. e4 {[%clk 0:03:00]}  c5 {[%clk 0:02:59]} 2. Nf3 {[%clk 0:02:59]}  e6 {[%clk 0:02:59]} 3. d4 {[%clk 0:02:56]}  cxd4 {[%clk 0:03:00]} 4. Nxd4 {[%clk 0:02:55]}  a6 {[%clk 0:03:00]} 5. Bd3 {[%clk 0:02:53]}  Bc5 {[%clk 0:02:57]} 6. Nb3 {[%clk 0:02:50]}  Be7 {[%clk 0:02:57]} 7. Qg4 {[%clk 0:02:48]}  Kf8 {[%clk 0:02:56]} 8. Qe2 {[%clk 0:02:47]}  d6 {[%clk 0:02:55]} 9. c4 {[%clk 0:02:45]}  Nd7 {[%clk 0:02:54]} 10. Nc3 {[%clk 0:02:46]}  b6 {[%clk 0:02:52]} 11. Be3 {[%clk 0:02:45]}  Bb7 {[%clk 0:02:51]} 12. Rd1 {[%clk 0:02:44]}  Qc7 {[%clk 0:02:50]} 13. O-O {[%clk 0:02:41]}  Ngf6 {[%clk 0:02:50]} 14. f4 {[%clk 0:02:38]}  h5 {[%clk 0:02:47]} 15. Nd4 {[%clk 0:02:35]}  Nc5 {[%clk 0:02:43]} 16. Bb1 {[%clk 0:02:27]}  Nfxe4 {[%clk 0:02:29]} 17. Nxe4 {[%clk 0:02:27]}  Nxe4 {[%clk 0:02:29]} 18. f5 {[%clk 0:02:18]}  e5 {[%clk 0:02:19]} 19. f6 {[%clk 0:02:18]}  Bxf6 {[%clk 0:01:45]} 20. Nf5 {[%clk 0:02:17]}  Rd8 {[%clk 0:01:39]} 21. Kh1 {[%clk 0:01:48]}  Qc6 {[%clk 0:01:25]} 22. Qf3 {[%clk 0:01:45]}  h4 {[%clk 0:00:57]} 23. Nxg7 {[%clk 0:01:42]}  h3 {[%clk 0:00:48]} 24. Ne6+ {[%clk 0:00:58]}  fxe6 {[%clk 0:00:41]} 25. Bxe4 {[%clk 0:00:58]}  hxg2+ {[%clk 0:00:41]} 26. Kg1 {[%clk 0:00:58]}  gxf1=Q+ {[%clk 0:00:38]} 27. Rxf1 {[%clk 0:00:58]}  Rg8+ {[%clk 0:00:15]} 28. Kf2 {[%clk 0:00:57]}  Qxe4 {[%clk 0:00:15]} 29. Qxf6+ {[%clk 0:00:57]}  Ke8 {[%clk 0:00:16]} 30. Qxe6+ {[%clk 0:00:56]}  Kf8 {[%clk 0:00:16]} 31. Ke1+ {[%clk 0:00:56]}  Qf3 {[%clk 0:00:16]} 32. Rxf3+ {[%clk 0:00:55]}  Bxf3 {[%clk 0:00:15]} 33. Bh6+ {[%clk 0:00:55]} 1-0

[Event "January 2 Early 2024"]
[Site "https://www.chess.com"]
[Date "2024.01.02"]
[Round "10"]
[White "Injac, Teodora"]
[Black "Adelman, Charles"]
[Result "1-0"]
[Board "53"]
[TimeControl "180+1"]
[WhiteFideId "932400"]
[BlackFideId "2003597"]
[WhiteElo "2663"]
[BlackElo "2273"]
[WhiteTeam "SRB"]
[BlackTeam "USA"]
[WhiteClock "0:01:37"]
[BlackClock "0:01:55"]

1. d4 {[%clk 0:03:00]}  Nf6 {[%clk 0:03:00]} 2. Nf3 {[%clk 0:03:00]}  c5 {[%clk 0:03:00]} 3. d5 {[%clk 0:03:00]}  d6 {[%clk 0:02:59]} 4. Nc3 {[%clk 0:03:00]}  g6 {[%clk 0:03:00]} 5. e4 {[%clk 0:03:00]}  a6 {[%clk 0:02:59]} 6. a4 {[%clk 0:03:00]}  Bg4 {[%clk 0:02:59]} 7. h3 {[%clk 0:02:57]}  Bxf3 {[%clk 0:02:59]} 8. Qxf3 {[%clk 0:02:58]}  Bg7 {[%clk 0:02:59]} 9. Be2 {[%clk 0:02:57]}  O-O {[%clk 0:03:00]} 10. O-O {[%clk 0:02:57]}  Nbd7 {[%clk 0:03:00]} 11. Qg3 {[%clk 0:02:57]}  Ne8 {[%clk 0:02:58]} 12. Qh4 {[%clk 0:02:51]}  Rb8 {[%clk 0:02:55]} 13. Bg5 {[%clk 0:02:50]}  Bf6 {[%clk 0:02:53]} 14. f4 {[%clk 0:02:46]}  Bxg5 {[%clk 0:02:44]} 15. Qxg5 {[%clk 0:02:46]}  e5 {[%clk 0:02:30]} 16. dxe6 {[%clk 0:02:29]}  fxe6 {[%clk 0:02:28]} 17. Qg4 {[%clk 0:02:24]}  Qf6 {[%clk 0:02:19]} 18. Rad1 {[%clk 0:01:47]}  Qf7 {[%clk 0:02:10]} 19. Bc4 {[%clk 0:01:42]}  Ndf6 {[%clk 0:02:06]} 20. Qxe6 {[%clk 0:01:39]}  Qxe6 {[%clk 0:02:06]} 21. Bxe6+ {[%clk 0:01:39]}  Kg7 {[%clk 0:02:06]} 22. e5 {[%clk 0:01:36]}  dxe5 {[%clk 0:02:04]} 23. fxe5 {[%clk 0:01:37]}  Nh5 {[%clk 0:01:55]} 24. Rd7+ {[%clk 0:01:37]} 1-0